bitfinex-derivatives/quotes_BTCF0:USTF0_20220103
["timestamp","ask_amount","ask_price","bid_price","bid_amount"]
[1641173785419,0.09056186,47021.0,47019.0,0.31674105]
[1641173785821,0.09056186,47021.0,47020.0,0.12074105]
[1641173786919,0.09056186,47021.0,47020.0,1.3282364]
[1641173787119,0.09056186,47021.0,47020.0,1.20749535]
[1641173787318,0.09056186,47021.0,47020.0,1.5222364]
[1641173788019,0.09056186,47021.0,47020.0,0.31474105]
[1641173788529,0.09056186,47021.0,47020.0,0.12074105]
[1641173788921,0.09056186,47021.0,47018.0,0.12074105]
[1641173789323,0.09056186,47021.0,47020.0,0.31374105]
[1641173790623,0.09056186,47021.0,47020.0,0.12074105]
[1641173791328,0.09056186,47021.0,47020.0,0.195]
[1641173791727,0.09056186,47021.0,47020.0,1.52326006]
[1641173792625,0.09056186,47021.0,47020.0,1.32826006]
[1641173793327,0.09056186,47021.0,47020.0,1.52126006]
[1641173795228,0.09056186,47021.0,47020.0,1.71626006]
[1641173796630,0.09056186,47021.0,47020.0,1.32826006]
[1641173797032,0.14033567,47022.0,47020.0,1.32826006]
[1641173797234,0.14033567,47022.0,47020.0,0.31574105]
[1641173797433,0.14033567,47022.0,47020.0,0.195]
[1641173798033,0.14033567,47022.0,47021.0,0.36193827]
[1641173799336,0.14033567,47022.0,47021.0,0.67567904]
[1641173799942,0.14033567,47022.0,47021.0,0.55493827]
[1641173800146,0.14033567,47022.0,47021.0,0.31374145]
[1641173800344,0.23089986,47022.0,47021.0,0.31374145]
[1641173800544,0.23089986,47022.0,47021.0,1.32826046]
[1641173801147,0.23089986,47022.0,47021.0,1.20751901]
[1641173801348,0.23089986,47022.0,47021.0,1.40151901]
[1641173801947,0.23089986,47022.0,47021.0,0.31473876]
[1641173802546,0.23089986,47022.0,47021.0,0.12073876]
[1641173802747,0.23089986,47022.0,47021.0,1.32825777]
[1641173802947,0.23089986,47022.0,47021.0,1.20751901]
[1641173803248,0.41189986,47022.0,47021.0,1.38751901]
[1641173804447,0.41189986,47022.0,47021.0,0.18]
[1641173804648,0.23089986,47022.0,47020.0,1.20751901]
[1641173805348,0.23089986,47022.0,47020.0,1.39551901]
[1641173805848,0.09056419,47021.0,47020.0,1.39551901]
[1641173806252,0.09056419,47021.0,47020.0,1.51625967]
[1641173806747,0.09056419,47021.0,47020.0,1.32825967]
[1641173807248,0.09056419,47021.0,47020.0,1.52325967]
[1641173808050,0.09056419,47021.0,47020.0,0.31574066]
[1641173808550,0.09056419,47021.0,47020.0,0.12074066]
[1641173808855,0.09056419,47021.0,47018.0,0.12074066]
[1641173809251,0.09056419,47021.0,47019.0,0.01207402]
[1641173809853,0.09056419,47021.0,47020.0,0.12074066]
[1641173811055,0.09056419,47021.0,47018.0,0.12074066]
[1641173811253,0.09056419,47021.0,47020.0,1.20751599]
[1641173811458,0.09056419,47021.0,47020.0,1.52325665]
[1641173812655,0.09056419,47021.0,47020.0,1.32825665]
[1641173813454,0.09056419,47021.0,47020.0,1.52125665]
[1641173814254,0.09056419,47023.0,47020.0,0.31374066]
[1641173814655,0.14033567,47022.0,47020.0,0.12074066]
[1641173814855,0.14033567,47022.0,47021.0,0.12074066]
[1641173815056,0.14033567,47022.0,47021.0,1.32825481]
[1641173815256,0.14033567,47022.0,47021.0,1.20751415]
[1641173815457,0.14033567,47022.0,47021.0,1.40151415]
[1641173815859,0.14033567,47022.0,47021.0,1.52225481]
[1641173816058,0.23089986,47022.0,47021.0,1.52225481]
[1641173816665,0.23089986,47022.0,47021.0,1.32825481]
[1641173816863,0.23089986,47022.0,47021.0,0.12074066]
[1641173817464,0.23089986,47022.0,47021.0,0.31474066]
[1641173819367,0.23089986,47022.0,47021.0,0.31374066]
[1641173820569,0.23089986,47022.0,47021.0,0.12074066]
[1641173821373,0.23089986,47022.0,47021.0,0.31374066]
[1641173824673,0.23089986,47022.0,47021.0,0.12074066]
[1641173825274,0.23089986,47022.0,47020.0,0.12074066]
[1641173825574,0.23089986,47022.0,47021.0,0.193]
[1641173825774,0.23089986,47022.0,47021.0,0.31374066]
[1641173826876,0.23089986,47022.0,47021.0,0.12074066]
[1641173827181,9.986e-05,47022.0,47021.0,0.30074066]
[1641173827380,0.99195263,47036.0,47022.0,1.115]
[1641173827583,1.8126,47043.0,47033.0,0.18]
[1641173827780,1.8126,47043.0,47033.0,0.087584]
[1641173827981,1.8126,47043.0,47037.0,0.18]
[1641173828181,1.10325079,47044.0,47035.0,0.06848791]
[1641173828381,1.10325079,47044.0,47037.0,0.18]
[1641173828581,0.02,47045.0,47036.0,0.18]
[1641173828980,0.14033567,47040.0,47036.0,0.06]
[1641173829180,0.14033567,47040.0,47036.0,0.18]
[1641173829399,0.14033567,47040.0,47036.0,0.342]
[1641173829580,0.14033567,47040.0,47036.0,0.162]
[1641173829980,0.14033567,47040.0,47039.0,0.36219873]
[1641173830982,0.14033567,47040.0,47039.0,0.60366455]
[1641173830983,0.32033567,47040.0,47039.0,0.60366455]
[1641173831282,3.567e-05,47040.0,47039.0,0.60366455]
[1641173831487,3.52444111,47061.0,47040.0,1.115]
[1641173831681,1.63864111,47061.0,47051.0,0.18]
[1641173831881,1.58264111,47061.0,47060.0,0.02124779]
[1641173832290,0.0001,47070.0,47060.0,0.0877623]
[1641173832488,0.18,47062.0,47060.0,0.0877623]
[1641173832687,0.18,47062.0,47059.0,0.009794]
[1641173832886,1.96986548,47068.0,47061.0,0.14033567]
[1641173833288,0.18,47068.0,47061.0,0.14033567]
[1641173833487,0.18,47064.0,47061.0,0.30533567]
[1641173834703,0.18,47064.0,47061.0,0.14033567]
[1641173835107,0.0001,47070.0,47061.0,0.14033567]
[1641173835503,0.18,47067.0,47061.0,0.32733567]
[1641173836304,0.1801,47070.0,47061.0,0.32733567]
[1641173836903,0.1801,47070.0,47061.0,0.14033567]
[1641173837303,0.18,47066.0,47061.0,0.14033567]
[1641173837504,0.18,47066.0,47061.0,0.32033567]
[1641173839005,0.18,47066.0,47061.0,0.14033567]
[1641173839404,0.18,47066.0,47061.0,0.32433567]
[1641173840605,0.18,47066.0,47061.0,0.14033567]
[1641173841007,0.1801,47070.0,47061.0,0.14033567]
[1641173841406,0.1801,47070.0,47061.0,0.32433567]
[1641173841607,0.18,47066.0,47061.0,0.32433567]
[1641173842713,0.09049778,47065.0,47061.0,0.14033567]
[1641173843412,0.09049778,47065.0,47061.0,0.32733567]
[1641173844012,0.09049778,47065.0,47061.0,0.86949331]
[1641173844311,0.09049778,47065.0,47061.0,0.68949331]
[1641173844912,0.0001,47070.0,47064.0,0.36215764]
[1641173845113,0.0001,47070.0,47066.0,0.14033567]
[1641173846915,0.18,47068.0,47066.0,0.50249331]
[1641173847114,0.25688,47068.0,47066.0,0.50249331]
[1641173847513,0.25688,47068.0,47066.0,0.69149331]
[1641173847714,0.09049778,47067.0,47066.0,0.32933567]
[1641173848713,0.09049778,47067.0,47066.0,0.14033567]
[1641173849518,0.09049778,47067.0,47066.0,0.32333567]
[1641173849816,0.09049778,47067.0,47061.0,0.36215764]
[1641173849817,0.09059778,47067.0,47061.0,0.36215764]
[1641173850016,0.18,47062.0,47060.0,0.60366455]
[1641173850217,0.18,47062.0,47059.0,0.36215764]
[1641173850618,0.001,47060.0,47059.0,0.36215764]
[1641173850917,0.18,47062.0,47059.0,0.36215764]
[1641173851320,0.09049778,47061.0,47058.0,0.60366455]
[1641173851518,0.09049778,47061.0,47057.0,0.36215764]
[1641173852017,0.001,47058.0,47057.0,0.36215764]
[1641173852422,1.44907306,47058.0,47056.0,0.50249331]
[1641173852618,1.44807306,47058.0,47056.0,0.50249331]
[1641173853220,0.14033567,47063.0,47056.0,0.14033567]
[1641173853419,0.135,47058.0,47056.0,0.32933567]
[1641173854819,0.14033567,47063.0,47056.0,0.14033567]
[1641173855521,0.33333567,47063.0,47056.0,0.14033567]
[1641173856819,0.14033567,47063.0,47056.0,0.14033567]
[1641173857422,0.33133567,47063.0,47056.0,0.14033567]
[1641173858720,0.14033567,47063.0,47056.0,0.14033567]
[1641173859421,0.186,47063.0,47056.0,0.32033567]
[1641173860023,0.186,47063.0,47059.0,0.02124843]
[1641173860822,0.0001,47070.0,47059.0,0.02124843]
[1641173861421,0.1951,47067.0,47059.0,0.20124843]
[1641173861622,0.1951,47067.0,47059.0,0.02124843]
[1641173862625,0.0001,47067.0,47059.0,0.02124843]
[1641173863427,0.1921,47067.0,47059.0,0.02124843]
[1641173864729,0.0001,47067.0,47059.0,0.02124843]
[1641173865329,0.1921,47067.0,47059.0,0.02124843]
[1641173866728,0.0001,47067.0,47059.0,0.02124843]
[1641173867329,0.1891,47067.0,47059.0,0.02124843]
[1641173868733,0.0001,47067.0,47059.0,0.02124843]
[1641173869334,1.44807306,47065.0,47063.0,0.36215764]
[1641173869536,0.001,47064.0,47063.0,0.36215764]
[1641173870136,0.001,47064.0,47062.0,0.36215764]
[1641173870137,1.53956377,47064.0,47062.0,0.36215764]
[1641173870334,1.53856377,47064.0,47062.0,0.36215764]
[1641173871038,0.001,47063.0,47062.0,0.36215764]
[1641173871238,1.53856377,47064.0,47062.0,0.36215764]
[1641173871438,1.53856377,47066.0,47063.0,0.36215764]
[1641173871637,0.001,47064.0,47063.0,0.36215764]
[1641173872037,0.001,47064.0,47062.0,1.16182219]
[1641173872238,0.001,47063.0,47062.0,0.55815764]
[1641173872439,1.53856377,47065.0,47062.0,0.55815764]
[1641173872640,0.001,47063.0,47062.0,0.55815764]
[1641173872840,0.001,47063.0,47062.0,0.36215764]
[1641173873241,1.53856377,47065.0,47062.0,0.36215764]
[1641173873441,1.53856377,47065.0,47062.0,0.55715764]
[1641173873644,0.09049071,47063.0,47062.0,0.55715764]
[1641173874241,0.09049071,47063.0,47062.0,0.195]
[1641173874742,1.53856377,47066.0,47062.0,0.195]
[1641173874941,1.53856377,47066.0,47062.0,0.79866455]
[1641173875341,1.72156377,47066.0,47062.0,0.78566455]
[1641173876042,0.09049071,47065.0,47064.0,0.3586377]
[1641173876443,0.09049071,47065.0,47064.0,0.37988379]
[1641173877241,0.09049071,47065.0,47064.0,0.02124609]
[1641173877442,0.09049071,47065.0,47064.0,0.21424609]
[1641173878645,0.09049071,47066.0,47064.0,0.21424609]
[1641173878845,0.09049071,47066.0,47064.0,0.02124609]
[1641173879345,0.09049071,47066.0,47065.0,0.35859032]
[1641173879545,0.09149071,47066.0,47065.0,0.35859032]
[1641173881447,0.09149071,47066.0,47065.0,0.54859032]
[1641173882749,0.09149071,47066.0,47065.0,0.35859032]
[1641173882949,0.09149071,47066.0,47061.0,0.16158317]
[1641173883150,0.09049071,47066.0,47061.0,0.16158317]
[1641173883450,0.09049071,47066.0,47065.0,0.189]
[1641173883651,0.001,47066.0,47065.0,0.189]
[1641173884750,0.001,47066.0,47061.0,0.16158317]
[1641173884950,0.0001,47069.0,47061.0,0.16158317]
[1641173885351,0.0001,47069.0,47061.0,0.35058317]
[1641173886753,0.0001,47069.0,47061.0,0.16158317]
[1641173887453,0.1921,47069.0,47061.0,0.16158317]
[1641173888653,0.0001,47069.0,47061.0,0.16158317]
[1641173889453,0.1851,47069.0,47061.0,0.16158317]
[1641173890756,0.0001,47069.0,47061.0,0.16158317]
[1641173891356,0.1861,47069.0,47061.0,0.16158317]
[1641173893055,0.0001,47069.0,47061.0,0.16158317]
[1641173893459,0.1891,47069.0,47061.0,0.16158317]
[1641173894460,0.18,47064.0,47056.0,0.49892599]
[1641173894859,0.18,47060.0,47056.0,0.49892599]
[1641173895060,0.08416,47060.0,47056.0,0.49892599]
[1641173895260,0.001,47057.0,47056.0,0.49892599]
[1641173895660,0.001,47057.0,47056.0,0.14033567]
[1641173897059,0.001,47057.0,47056.0,0.26097344]
[1641173897261,0.0001,47060.0,47056.0,0.26097344]
[1641173897473,0.058,47057.0,47056.0,0.44997344]
[1641173897672,0.058,47057.0,47056.0,0.32933567]
[1641173898076,0.058,47057.0,47056.0,0.44996459]
[1641173898274,0.058,47057.0,47056.0,0.62996459]
[1641173898774,1.44807306,47062.0,47056.0,0.27841294]
[1641173898974,1.44807306,47062.0,47056.0,0.09841294]
[1641173899174,1.44807306,47062.0,47056.0,0.02124835]
[1641173899375,1.63307306,47062.0,47056.0,0.02124835]
[1641173899878,0.185,47062.0,47056.0,0.02124835]
[1641173900076,0.0904878,47057.0,47056.0,0.02124835]
[1641173901376,0.2624878,47057.0,47056.0,0.02124835]
[1641173901778,1.01621376,47057.0,47056.0,0.02124835]
[1641173902777,0.84421376,47057.0,47056.0,0.02124835]
[1641173903178,0.93470156,47057.0,47056.0,0.02124835]
[1641173903379,1.10270156,47057.0,47056.0,0.02124835]
[1641173904080,1.01221376,47057.0,47056.0,0.02124835]
[1641173904279,1.01221376,47057.0,47056.0,0.20124835]
[1641173904778,0.84421376,47057.0,47056.0,0.20124835]
[1641173904979,0.84421376,47057.0,47056.0,0.14124835]
[1641173905181,0.84421376,47057.0,47056.0,0.20124835]
[1641173905379,0.2584878,47057.0,47056.0,0.20124835]
[1641173905779,0.168,47057.0,47056.0,1.31624835]
[1641173905979,1.44807306,47068.0,47056.0,1.31624835]
[1641173906179,1.44807306,47068.0,47060.0,0.18]
[1641173906381,1.44807306,47068.0,47061.0,1.115]
[1641173906579,1.44807306,47068.0,47061.0,1.440859]
[1641173906781,1.44807306,47068.0,47062.0,0.12061939]
[1641173907182,1.44817306,47070.0,47062.0,0.12061939]
[1641173907382,0.16,47068.0,47062.0,0.30561939]
[1641173908083,0.09046337,47067.0,47065.0,0.35668336]
[1641173908283,0.09046337,47067.0,47065.0,0.53668336]
[1641173908484,0.001,47066.0,47065.0,0.53668336]
[1641173909083,0.001,47066.0,47065.0,0.65729547]
[1641173909483,0.001,47066.0,47065.0,0.85029547]
[1641173909684,0.09046337,47067.0,47065.0,0.85029547]
[1641173910187,0.09046337,47067.0,47065.0,0.72968336]
[1641173910385,0.09046337,47067.0,47065.0,0.373]
[1641173910586,0.09046337,47066.0,47065.0,0.373]
[1641173910886,0.09046337,47066.0,47065.0,0.18]
[1641173911087,0.09046337,47066.0,47065.0,0.30061135]
[1641173911285,0.0001,47070.0,47065.0,0.30061135]
[1641173911487,0.0001,47070.0,47065.0,0.31461135]
[1641173911686,0.0001,47070.0,47065.0,0.49461135]
[1641173912086,0.09046337,47066.0,47065.0,0.374]
[1641173912285,0.09046337,47066.0,47065.0,0.194]
[1641173912486,0.09046337,47066.0,47065.0,0.374]
[1641173912692,0.09046337,47066.0,47065.0,0.49460919]
[1641173912886,0.09046337,47066.0,47065.0,0.30060919]
[1641173913086,0.09046337,47066.0,47065.0,0.12060919]
[1641173913286,0.0001,47070.0,47065.0,0.12060919]
[1641173913487,0.0001,47070.0,47065.0,0.31460919]
[1641173913887,0.0001,47070.0,47065.0,0.194]
[1641173914087,0.0001,47070.0,47067.0,0.35677308]
[1641173914287,0.001,47068.0,47067.0,0.35677308]
[1641173915488,0.001,47068.0,47067.0,0.54877308]
[1641173916189,0.0001,47070.0,47067.0,0.54877308]
[1641173916390,0.0001,47070.0,47067.0,0.192]
[1641173916591,0.09046337,47068.0,47067.0,0.192]
[1641173916790,0.09046337,47068.0,47066.0,0.5946218]
[1641173916991,0.001,47067.0,47066.0,0.5946218]
[1641173917391,0.001,47067.0,47066.0,0.90723087]
[1641173917590,0.001,47067.0,47066.0,0.7866218]
[1641173917991,0.09146337,47067.0,47066.0,0.192]
[1641173918793,0.09146337,47067.0,47065.0,0.7746218]
[1641173918994,0.09046337,47067.0,47066.0,0.35680631]
[1641173919195,0.09146337,47067.0,47066.0,0.35680631]
[1641173919392,0.09146337,47067.0,47066.0,0.54980631]
[1641173919793,0.001,47067.0,47066.0,0.54980631]
[1641173920693,0.001,47067.0,47066.0,0.35680631]
[1641173920893,0.09146337,47067.0,47066.0,0.35680631]
[1641173921499,0.09146337,47067.0,47066.0,0.54980631]
[1641173922595,0.09146337,47067.0,47066.0,0.35680631]
[1641173923496,0.09146337,47067.0,47066.0,0.54980631]
[1641173923696,0.09146337,47067.0,47066.0,0.7876218]
[1641173924396,0.09146337,47067.0,47066.0,0.193]
[1641173924897,0.09146337,47067.0,47065.0,0.7746218]
[1641173925097,0.09046337,47067.0,47065.0,0.7746218]
[1641173925501,0.09046337,47067.0,47065.0,0.9676218]
[1641173925898,0.09046337,47067.0,47065.0,0.7876218]
[1641173926101,0.09046337,47067.0,47065.0,0.9676218]
[1641173926500,0.0001,47070.0,47066.0,0.5946218]
[1641173926700,0.001,47067.0,47066.0,0.5946218]
[1641173927102,0.09146337,47067.0,47066.0,0.83252275]
[1641173927600,0.09046337,47067.0,47066.0,2.14152275]
[1641173927800,0.0001,47070.0,47066.0,2.15131675]
[1641173928002,0.7260564,47085.0,47070.0,1.115]
[1641173928202,0.7260564,47085.0,47071.0,0.009794]
[1641173928403,0.7260564,47085.0,47074.0,1.115]
[1641173928604,0.7260564,47085.0,47074.0,1.18991]
[1641173928805,0.7260564,47085.0,47075.0,0.318078]
[1641173929003,0.7260564,47085.0,47075.0,1.433078]
[1641173929403,0.0001,47080.0,47075.0,1.606078]
[1641173931004,0.0001,47080.0,47075.0,0.173]
[1641173931604,0.0001,47080.0,47074.0,0.14033567]
[1641173934505,0.0001,47080.0,47078.0,1.115]
[1641173934804,0.0001,47080.0,47079.0,1.46130676]
[1641173935707,0.0001,47080.0,47079.0,0.53630676]
[1641173935906,0.0001,47080.0,47079.0,0.22103176]
[1641173937106,0.0001,47080.0,47079.0,0.03103176]
[1641173937506,0.0001,47080.0,47079.0,0.22203176]
[1641173939010,0.0001,47080.0,47075.0,0.02124122]
[1641173939209,0.001,47076.0,47075.0,0.02124122]
[1641173941510,0.186,47076.0,47075.0,0.14224122]
[1641173942912,0.001,47076.0,47075.0,0.02124122]
[1641173943310,0.09145439,47076.0,47075.0,0.02124122]
[1641173943512,0.27945439,47076.0,47075.0,0.02124122]
[1641173944011,0.27955439,47076.0,47069.0,0.49674919]
[1641173944212,0.181,47071.0,47069.0,0.35641352]
[1641173944412,0.001,47070.0,47069.0,0.35641352]
[1641173944611,0.06924,47070.0,47067.0,0.95043606]
[1641173944812,0.001,47068.0,47067.0,0.35641352]
[1641173945510,0.194,47068.0,47067.0,0.35641352]
[1641173945711,0.33433567,47068.0,47066.0,0.61526811]
[1641173945912,0.33333567,47068.0,47066.0,0.61526811]
[1641173946214,0.42379006,47068.0,47066.0,0.61526811]
[1641173946911,0.23079006,47068.0,47066.0,0.61526811]
[1641173947113,0.23079006,47068.0,47066.0,0.37859184]
[1641173947114,0.09045439,47067.0,47066.0,0.37859184]
[1641173948816,0.09045439,47067.0,47066.0,0.02124557]
[1641173949620,0.26945439,47067.0,47066.0,0.049]
[1641173950619,0.26945439,47067.0,47066.0,0.40635539]
[1641173950816,0.09045439,47067.0,47066.0,0.35735539]
[1641173951617,0.27945439,47067.0,47066.0,0.35735539]
[1641173952621,1.72504027,47067.0,47066.0,0.35735539]
[1641173952822,1.53704027,47067.0,47064.0,0.35735539]
[1641173953024,0.18,47066.0,47064.0,0.35735539]
[1641173953624,0.369,47066.0,47065.0,0.35735539]
[1641173953835,0.37,47066.0,47065.0,0.35735539]
[1641173954534,0.46045439,47066.0,47064.0,0.35735539]
[1641173954733,0.45945439,47066.0,47064.0,0.35735539]
[1641173954933,0.27045439,47066.0,47064.0,0.35735539]
[1641173955135,0.09045439,47065.0,47064.0,0.35735539]
[1641173957633,0.28045439,47065.0,47064.0,0.35735539]
[1641173958934,0.09045439,47065.0,47061.0,0.83252275]
[1641173959138,0.09045439,47065.0,47063.0,0.83252275]
[1641173959336,0.09045439,47065.0,47063.0,0.92266275]
[1641173959534,0.28345439,47065.0,47063.0,0.92266275]
[1641173959937,0.193,47065.0,47063.0,0.92266275]
[1641173960636,0.09045439,47064.0,47063.0,0.92266275]
[1641173961645,0.28445439,47064.0,47063.0,0.92266275]
[1641173962140,0.194,47064.0,47063.0,0.92266275]
[1641173962343,0.1951,47064.0,47063.0,0.83252275]
[1641173962540,0.1951,47064.0,47061.0,1.18894455]
[1641173962742,0.181,47062.0,47061.0,1.18894455]
[1641173963043,0.26646,47062.0,47055.0,0.66575675]
[1641173963243,0.181,47057.0,47055.0,0.66575675]
[1641173963542,0.0011,47056.0,47055.0,0.66575675]
[1641173963842,0.28177134,47056.0,47053.0,1.42453952]
[1641173964041,0.001,47054.0,47053.0,1.42453952]
[1641173964441,0.181,47054.0,47053.0,1.42453952]
[1641173964642,0.181,47054.0,47046.0,1.54186231]
[1641173964842,0.001,47049.0,47045.0,1.42453952]
[1641173965041,0.001,47046.0,47045.0,1.42453952]
[1641173965541,0.181,47046.0,47045.0,1.42453952]
[1641173965941,0.181,47046.0,47042.0,1.42453952]
[1641173966744,0.001,47043.0,47042.0,1.42453952]
[1641173966945,0.001,47043.0,47041.0,1.42453952]
[1641173967247,0.36201809,47044.0,47041.0,1.42453952]
[1641173967645,0.18,47043.0,47041.0,1.42453952]
[1641173968747,0.54201809,47043.0,47041.0,1.42453952]
[1641173968952,0.36201809,47043.0,47041.0,1.42453952]
[1641173969555,0.36201809,47043.0,47042.0,1.115]
[1641173969758,0.09050583,47046.0,47042.0,1.433504]
[1641173970355,0.09050583,47046.0,47042.0,0.318504]
[1641173971559,0.129,47046.0,47042.0,0.318504]
[1641173972360,0.129,47046.0,47041.0,0.36727748]
[1641173972960,0.14033567,47047.0,47041.0,0.36727748]
[1641173973162,0.14033567,47047.0,47041.0,0.009794]
[1641173973361,0.98305084,47047.0,47041.0,1.43433352]
[1641173973560,1.12505084,47047.0,47041.0,1.43433352]
[1641173974565,1.12505084,47047.0,47042.0,1.432487]
[1641173974762,1.12505084,47047.0,47042.0,1.63374332]
[1641173974965,0.98305084,47047.0,47042.0,1.63374332]
[1641173975562,0.98305084,47047.0,47042.0,0.51874332]
[1641173975763,0.98305084,47047.0,47043.0,0.18]
[1641173976364,0.14033567,47047.0,47043.0,0.18]
[1641173976763,0.14033567,47047.0,47043.0,1.60453952]
[1641173978564,0.14033567,47047.0,47043.0,1.42453952]
[1641173978765,0.14033567,47047.0,47043.0,1.60453952]
[1641173979168,0.14033567,47047.0,47046.0,1.31265399]
[1641173980368,0.14033567,47047.0,47046.0,1.3247198]
[1641173980970,0.23083888,47047.0,47046.0,1.3247198]
[1641173981572,0.14033567,47047.0,47046.0,1.3247198]
[1641173983874,0.14033567,47047.0,47046.0,1.31265399]
[1641173984075,1.07355585,47047.0,47045.0,1.31265399]
[1641173984274,1.07355585,47047.0,47046.0,0.0120661]
[1641173984474,1.07355585,47047.0,47045.0,1.31265399]
[1641173984774,1.07355585,47047.0,47046.0,0.01206609]
[1641173984977,0.93322018,47047.0,47046.0,0.01206609]
[1641173985375,0.84271517,47047.0,47046.0,0.01206609]
[1641173985574,0.18,47053.0,47046.0,0.01206609]
[1641173985774,0.18,47053.0,47046.0,0.20406609]
[1641173986075,0.18,47053.0,47046.0,0.192]
[1641173986276,0.18,47053.0,47052.0,0.8348246]
[1641173986475,0.18,47053.0,47052.0,0.9272546]
[1641173986676,0.181,47053.0,47052.0,0.9272546]
[1641173986875,0.001,47053.0,47052.0,0.9272546]
[1641173987677,0.2,47053.0,47052.0,0.8348246]
[1641173989081,0.001,47053.0,47052.0,0.8348246]
[1641173989682,0.2,47053.0,47052.0,0.8348246]
[1641173990982,0.001,47053.0,47052.0,0.8348246]
[1641173991783,0.2,47053.0,47052.0,0.8348246]
[1641173993083,0.001,47053.0,47052.0,0.8348246]
[1641173993685,0.2,47053.0,47052.0,0.8348246]
[1641173994998,0.001,47053.0,47052.0,0.8348246]
[1641173995699,0.2,47053.0,47052.0,0.8348246]
[1641173996502,0.2,47053.0,47050.0,1.19260657]
[1641173996704,0.001,47051.0,47050.0,1.19260657]
[1641173997704,0.128,47051.0,47050.0,0.18]
[1641173999207,0.001,47051.0,47047.0,1.31265399]
[1641173999407,0.28077134,47056.0,47047.0,1.31265399]
[1641173999609,0.28077134,47056.0,47048.0,0.01206515]
[1641173999909,0.15,47051.0,47048.0,0.33125915]
[1641174000408,0.15,47051.0,47047.0,1.49565399]
[1641174000409,0.15,47051.0,47050.0,3.23126002]
[1641174000611,0.151,47051.0,47050.0,3.23126002]
[1641174001109,0.001,47051.0,47050.0,3.23126002]
[1641174001610,0.09149979,47051.0,47050.0,3.23126002]
[1641174001808,0.24149979,47051.0,47050.0,3.41426002]
[1641174003111,0.09149979,47051.0,47050.0,3.23126002]
[1641174003710,0.21849979,47051.0,47050.0,3.41126002]
[1641174005013,0.09149979,47051.0,47050.0,3.23126002]
[1641174005716,0.21949979,47051.0,47050.0,3.41026002]
[1641174007016,0.09149979,47051.0,47050.0,3.23126002]
[1641174007215,0.09149979,47051.0,47045.0,1.40141185]
[1641174007415,0.09049979,47051.0,47045.0,1.40141185]
[1641174007715,0.128,47051.0,47045.0,1.58041185]
[1641174007916,0.36185371,47048.0,47046.0,0.13041033]
[1641174008117,0.43047371,47048.0,47046.0,0.13041033]
[1641174008318,0.43047371,47048.0,47047.0,0.01206516]
[1641174008616,0.06862,47048.0,47047.0,0.13041033]
[1641174009817,0.18962,47048.0,47047.0,0.32141033]
[1641174011220,0.06862,47048.0,47047.0,0.13041033]
[1641174011919,0.18962,47048.0,47047.0,0.32141033]
[1641174013124,0.06862,47048.0,47047.0,0.13041033]
[1641174013322,0.36185371,47049.0,47047.0,0.13041033]
[1641174013722,0.36185371,47049.0,47048.0,0.13041033]
[1641174015722,0.48285371,47049.0,47048.0,0.31941033]
[1641174016923,0.121,47049.0,47048.0,0.31941033]
[1641174017124,0.121,47049.0,47048.0,0.13041033]
[1641174017324,0.84458995,47050.0,47048.0,0.13041033]
[1641174017826,0.84458995,47050.0,47049.0,0.11834517]
[1641174018225,0.84458995,47050.0,47048.0,0.188]
[1641174018427,0.98492562,47050.0,47048.0,0.188]
[1641174018626,0.98492562,47050.0,47049.0,0.11805869]
[1641174019827,1.25942086,47050.0,47049.0,0.151]
[1641174021131,1.07542086,47050.0,47046.0,1.31265399]
[1641174021532,1.07542086,47050.0,47047.0,0.11032282]
[1641174021831,1.24942086,47050.0,47047.0,0.11032282]
[1641174022030,1.24942086,47050.0,47048.0,0.01206507]
[1641174022230,1.24942086,47050.0,47048.0,0.11038912]
[1641174022430,1.24942086,47050.0,47047.0,0.11038912]
[1641174022634,1.24942086,47050.0,47046.0,1.48265399]
[1641174023031,0.36194078,47047.0,47046.0,1.48265399]
[1641174023231,0.36194078,47047.0,47046.0,1.31265399]
[1641174023831,0.36194078,47047.0,47046.0,1.50165399]
[1641174024032,0.93508519,47049.0,47046.0,1.50165399]
[1641174024932,0.93508519,47049.0,47046.0,0.189]
[1641174025133,0.93508519,47049.0,47045.0,1.31265399]
[1641174025333,0.99731519,47049.0,47045.0,1.31265399]
[1641174025733,1.18031519,47049.0,47045.0,1.47365399]
[1641174026537,0.93508519,47048.0,47045.0,1.47365399]
[1641174027134,0.93508519,47048.0,47045.0,1.31265399]
[1641174027536,0.84458995,47047.0,47043.0,1.31265399]
[1641174027735,0.84458995,47047.0,47045.0,0.185]
[1641174029138,0.84458995,47047.0,47043.0,1.31265399]
[1641174029739,0.09049524,47047.0,47044.0,1.31265399]
[1641174030542,0.84458995,47048.0,47044.0,1.31265399]
[1641174031941,1.01658995,47048.0,47044.0,1.50065399]
[1641174032743,1.01658995,47048.0,47045.0,1.31265399]
[1641174033342,0.84458995,47048.0,47045.0,1.31265399]
[1641174033543,0.0001,47047.0,47045.0,1.31265399]
[1641174033745,0.08639,47047.0,47045.0,1.44565399]
[1641174034142,0.08639,47047.0,47035.0,0.16633632]
[1641174034343,0.18,47036.0,47035.0,0.16633632]
[1641174034542,0.18,47036.0,47030.0,0.67313578]
[1641174034543,0.39940567,47036.0,47030.0,0.67313578]
[1641174034744,0.001,47031.0,47030.0,0.67313578]
[1641174034943,0.39840567,47036.0,47030.0,0.67313578]
[1641174035145,0.21840567,47036.0,47030.0,1.21426893]
[1641174035943,0.40240567,47036.0,47030.0,1.21426893]
[1641174036358,0.40240567,47036.0,47030.0,0.67313578]
[1641174036561,0.58240567,47036.0,47030.0,0.67313578]
[1641174036760,0.18,47033.0,47030.0,0.67313578]
[1641174037360,1.02458995,47033.0,47029.0,0.79672373]
[1641174037560,1.02458995,47033.0,47023.0,0.02126466]
[1641174037758,1.21358995,47033.0,47023.0,0.02126466]
[1641174037959,1.03358995,47033.0,47023.0,0.02126466]
[1641174038161,1.03358995,47033.0,47024.0,0.11168656]
[1641174038560,0.84458995,47031.0,47027.0,0.18]
[1641174038963,0.84458995,47031.0,47028.0,0.11168656]
[1641174039561,0.84458995,47031.0,47029.0,0.0120681]
[1641174039762,0.192,47031.0,47029.0,0.0120681]
[1641174039960,0.192,47031.0,47028.0,0.0120681]
[1641174041067,0.192,47031.0,47028.0,1.3215354]
[1641174041264,0.84458995,47032.0,47028.0,1.3094673]
[1641174041863,1.03558995,47032.0,47029.0,0.0120681]
[1641174042064,0.84458995,47031.0,47029.0,0.0120681]
[1641174043163,0.84458995,47030.0,47029.0,0.0120681]